Cogmind - Beta 13 X1 @@@ ROGUE MODE // 2023.09.28 @ 19:02:41 Player: f3-rnm Result: Destroyed by 20-7KD(R) with Subdweller Shrapnel Launcher Performance ------------- Evolutions (0) 0 Regions Visited (2) 400 Robots Destroyed (28) 140 Value Destroyed (736) 736 Prototype IDs (0) 0 Alien Tech Used (0) 0 Bonus (0) 0 TOTAL SCORE: 1276 Bonus ------- None Cogmind --------- Core Integrity 0/250 Matter 90/300 Energy 18/100 System Corruption 0% Temperature Cool (0) Movement Rolling (140) Ox4 Location -10/Subcaves Parts ------- > --- POWER (1) -------- (None) > --- PROPULSION (2) --- Wheel > --- UTILITY (2) ------ High-capacity Storage Unit > --- WEAPON (2) ------- Heavy EM Pulse Gun > --- INVENTORY (20) --- Ion Engine Ion Engine Light Ion Engine Light Nuclear Core Large Storage Unit Large Battery (200) High-capacity Battery (250) Medium Matter Pod (100) Utility Shielding Utility Shielding Medium Laser Small Laser Maul Maul Mining Claw Peak State ------------ > --- POWER ------------ Ion Engine > --- PROPULSION ------- Light Treads Light Treads > --- UTILITY ---------- Heat Sink High-capacity Storage Unit > --- WEAPON ----------- Heavy EM Pulse Gun Subdweller Beam Cannon > --- INVENTORY -------- Ion Engine Ion Engine Light Ion Engine Light Nuclear Core Wheel Large Storage Unit Large Battery High-capacity Battery Medium Matter Pod Utility Shielding Utility Shielding Weapon Shielding Medium Laser Small Laser Light Cannon Grenade Launcher Grenade Launcher Maul Maul Mining Claw [Rating: 11] Favorites ----------- Power Ion Engine Engine Ion Engine Propulsion Light Treads Treads Light Treads Wheel Wheel Utility High-capacity Storage Unit Device Heat Sink Storage High-capacity Storage Unit Processor Transport Network Coupler Protection Core Shielding Weapon Medium Laser Energy Gun Medium Laser Energy Cannon Subdweller Beam Cannon Ballistic Cannon Light Cannon Launcher Grenade Launcher Build | -11 -10 -10 ------- Run | Jun Mat Sub Slots Evolved . | . . . Power . | . . . Propulsion . | . . . Utility . | . . . Weapon . | . . . Parts Attached 29 | 6 11 12 Power 1 | 1 . . Engine 1 | 1 . . Core . | . . . Reactor . | . . . Propulsion 4 | 2 1 1 Treads 3 | 2 1 . Leg . | . . . Wheel 1 | . . 1 Hover . | . . . Flight . | . . . Utility 7 | 1 4 2 Device 1 | . . 1 Storage 2 | 1 1 . Processor 1 | . 1 . Hackware . | . . . Protection 3 | . 2 1 Artifact . | . . . Weapon 17 | 2 6 9 Energy Gun 11 | 2 6 3 Energy Cannon 2 | . . 2 Ballistic Gun . | . . . Ballistic Cannon 2 | . . 2 Launcher 2 | . . 2 Special Weapon . | . . . Impact Weapon . | . . . Slashing Weapon . | . . . Piercing Weapon . | . . . Special Melee Weapon . | . . . Unidentified Prototypes . | . . . Parts Lost 11 | . 3 8 Power 1 | . . 1 Propulsion 2 | . . 2 Utility 2 | . . 2 Weapon 6 | . 3 3 Highest Loss Streak 8 | . 2 8 To Critical Strikes . | . . . Average Slot Usage (%) 98 | . 99 90 Engine 13 | . 14 11 Treads 27 | . 27 23 Storage 14 | . 14 14 Protection 12 | . 13 2 Energy Gun 27 | . 27 14 Naked Turns . | . . . Heaviest Build 57 | 13 52 57 Greatest Support 40 | 40 40 40 Greatest Overweight (x) 3 | . 1 3 Average Overweight (x) . | . . 1 Largest Inventory Capacity 20 | 8 20 20 Average Capacity 18 | 7 19 20 Most Carried 20 | 3 20 20 Average Carried 15 | 2 15 19 Final Capacity 20 | 8 20 20 Final Carried 20 | 3 20 15 Class Distribution -------------------- 100% | Mutant Dominant Class ---------------- Mutant | -10/Materials Mutant | -10/Subcaves Resources | -11 -10 -10 ----------- Run | Jun Mat Sub Matter Collected 460 | 260 200 . Remotely . | . . . Salvage Created 1045 | 22 934 89 Parts 49 | 3 40 6 Haulers Intercepted 2 | . 2 . Recyclers Shooed . | . . . Parts Field Recycled . | . . . Retrieved Matter . | . . . Parts Self-Destructed . | . . . Prevented . | . . . Kills | -11 -10 -10 ------- Run | Jun Mat Sub Combat Hostiles Destroyed 21 | . 17 4 Guns 16 | . 16 . Cannons 1 | . . 1 AOE 3 | . . 3 Classes Destroyed 8 | 1 6 1 Builder 1 | . 1 . Tunneler 1 | 1 . . Hauler 2 | . 2 . Recycler 2 | . 2 . Watcher 1 | . 1 . Swarmer 3 | . 3 . Grunt 14 | . 14 . Subdweller 4 | . . 4 Best Kill Streak 7 | 1 7 4 Combat Bots Only 4 | . 4 4 Max Kills in Single Turn 2 | 1 2 1 Gunslinging 1 | . 1 . Exploded 1 | . . 1 Melee . | . . . Uniques/NPCs Destroyed . | . . . Combat | -11 -10 -10 -------- Run | Jun Mat Sub Damage Taken 1340 | . 517 823 Core 252 | . 63 189 Absorbed by Shields . | . . . Redirected to Shielding 66 | . 13 53 Regen/Repaired (Parts) 70 | . 70 . Core Remaining (%) 100 | 100 . . Volleys Fired 84 | 1 70 13 Largest 2 | 2 2 2 Hottest 115 | 90 95 115 Shots Fired 161 | 2 138 21 Gun 140 | 2 138 . Cannon 10 | . . 10 Launcher 11 | . . 11 Special . | . . . Kinetic 5 | . . 5 Thermal 74 | 2 67 5 Explosive 11 | . . 11 Electromagnetic 71 | . 71 . Robot Hit Streak 12 | 1 12 9 Robot Miss Streak 6 | . 6 1 Penetration Max . | . . . Secondary Targets 1 | . 1 . Max Gunslinging Chain 1 | . 1 . Shots Hit Robots 96 | 1 82 13 Core Hits 40 | 1 30 9 Critical Kills . | . . . Critical Parts Destroyed . | . . . Critical Strikes 4 | . 4 . Burn 3 | . 3 . Corrupt 1 | . 1 . Melee Attacks . | . . . Impact . | . . . Slashing . | . . . Piercing . | . . . Sneak Attacks . | . . . Combat Hostiles . | . . . Follow-up Attacks . | . . . Damage Inflicted 1696 | 12 1207 477 Guns 1198 | 12 1186 . Cannons 143 | . . 143 Explosions 355 | . 21 334 Melee . | . . . Ramming . | . . . Kinetic 35 | . . 35 Thermal 565 | 12 445 108 Explosive 334 | . . 334 Electromagnetic 762 | . 762 . Impact . | . . . Slashing . | . . . Piercing . | . . . Highest Corruption . | . . . Average Corruption . | . . . Corruption Purged . | . . . Corruption Blocked . | . . . Overload Shots . | . . . Overflow Damage 16 | . . 16 Projectiles . | . . . Explosions 16 | . . 16 Melee . | . . . Knockbacks . | . . . Impact . | . . . Kinetic . | . . . Secondary . | . . . Self-Inflicted Damage 162 | . . 162 Shots 6 | . . 6 Rammed . | . . . Targets Rammed . | . . . Kicked . | . . . Crushed . | . . . Highest Temperature 222 | 30 222 . Average Temperature 65 | 18 66 . Received Heat Transfer 288 | . 258 30 Effects 1 | . 1 . Energy Bleed 1 | . 1 . Siege Activations . | . . . Robots Corrupted 1 | . 1 . Combat Hostiles 1 | . 1 . Parts Fried 3 | . 3 . Impact Corruptions . | . . . Robots Melted . | . . . Combat Hostiles . | . . . Parts Melted 3 | . 1 2 Heat Transferred 1536 | 37 1351 148 Parts Sabotaged . | . . . Parts Stolen . | . . . Parts Stripped . | . . . Power Chain Reactions 1 | . 1 . Missiles Intercepted . | . . . Alert | -11 -10 -10 ------- Run | Jun Mat Sub Peak Influence 256 | 5 256 . Initial 3 | . 3 . Average 48 | 3 50 . Maximum Alert Level 1 | . 1 . Low Security (%) 96 | 100 96 . Level 1 3 | . 3 . Level 2 . | . . . Level 3 . | . . . Level 4 . | . . . Level 5 . | . . . High Security . | . . . Max Security . | . . . Squads Dispatched 4 | . 4 . Investigation 2 | . 2 . Extermination . | . . . Reinforcement 2 | . 2 . Assault . | . . . Garrison . | . . . Intercept . | . . . Searches Triggered . | . . . Construction Impeded . | . . . Haulers Reinforced . | . . . Active Scanning Responses . | . . . Cargo Convoy Interrupts . | . . . Stealth | -11 -10 -10 --------- Run | Jun Mat Sub Distress Signals 1 | . 1 . Communications Jammed . | . . . Distress Signals . | . . . Times Spotted 46 | . 40 6 Peak Tracking Total 5 | . 5 5 Tactical Retreats 2 | . 2 . Traps | -11 -10 -10 ------- Run | Jun Mat Sub Traps Triggered 2 | . 2 . Indirectly . | . . . Trap Hack Attempts . | . . . Triggered . | . . . Disarmed . | . . . Reprogrammed . | . . . Reused . | . . . Traps Extracted . | . . . Installed . | . . . Triggered . | . . . Machines | -11 -10 -10 ---------- Run | Jun Mat Sub Machines Disabled . | . . . Max in Single Turn . | . . . Machines Repaired . | . . . Machines Sabotaged . | . . . Overloaded Fab Kills . | . . . Hacking | -11 -10 -10 --------- Run | Jun Mat Sub Machines Accessed 3 | . 3 . Terminals 2 | . 2 . Fabricators . | . . . Repair Stations 1 | . 1 . Recycling Units . | . . . Scanalyzers . | . . . Garrison Access . | . . . Total Hacks 6 | . 6 . Successful 4 | . 4 . Failed 2 | . 2 . Catastrophic 1 | . 1 . Database Lockouts . | . . . Manual 5 | . 5 . Terminals 4 | . 4 . Fabricators . | . . . Repair Stations 2 | . 2 . Recycling Units . | . . . Scanalyzers . | . . . Garrison Access . | . . . Terminal Hacks 2 | . 2 . Robot Analysis 2 | . 2 . Fabricator Hacks . | . . . Repair Station Hacks 2 | . 2 . Scan Component 1 | . 1 . Repair 1 | . 1 . Recycling Unit Hacks . | . . . Scanalyzer . | . . . Garrison Access Hacks . | . . . Unauthorized Hacks . | . . . Terminals . | . . . Fabricators . | . . . Repair Stations . | . . . Recycling Units . | . . . Scanalyzers . | . . . Garrison Access . | . . . Data Cores Recovered . | . . . Used . | . . . Hacking Detections 2 | . 2 . Full Trace Events . | . . . Feedback Events . | . . . Feedback Blocked . | . . . Robot Schematics Acquired . | . . . Robots Built . | . . . Authchips . | . . . Time . | . . . Total Robot Build Rating . | . . . Part Schematics Acquired . | . . . Parts Built . | . . . Authchips . | . . . Time . | . . . Total Part Build Rating . | . . . Parts Repaired 1 | . 1 . Time 26 | . 26 . Parts Recycled . | . . . Recycled Matter . | . . . Retrieved Matter . | . . . Retrieved Components . | . . . Parts Scanalyzed . | . . . Part Schematics Acquired . | . . . Parts Damaged . | . . . Bothacking | -11 -10 -10 ------------ Run | Jun Mat Sub Used RIF Installer . | . . . Robots Hacked . | . . . Non-combat . | . . . Combat . | . . . Robot Hacks Applied . | . . . Relay Couplers Released . | . . . Fabnet Peak Effective % . | . . . Robots Rewired . | . . . Allies Hacked . | . . . Hacks Repelled . | . . . Allies | -11 -10 -10 -------- Run | Jun Mat Sub Total Allies . | . . . Largest Group . | . . . Highest-Rated Group . | . . . Highest-Rated Ally . | . . . Total Orders . | . . . Ally Attacks . | . . . Total Damage . | . . . Kills . | . . . Allies Corrupted . | . . . Allies Melted . | . . . Intel | -11 -10 -10 ------- Run | Jun Mat Sub Robot Analysis Total 2 | . 2 . Derelict Logs Recovered 1 | . . 1 Drone Launches . | . . . Drone Recoveries . | . . . Exploration | -11 -10 -10 ------------- Run | Jun Mat Sub Turns Passed 3537 | 161 3176 200 Spaces Moved 1290 | 91 1140 59 Core 10 | 10 . . Treads 1279 | 81 1140 58 Legs . | . . . Wheels 1 | . . 1 Hover . | . . . Flight . | . . . Fastest Speed 50 | 50 160 125 Average Speed 225 | 147 231 238 Slowest Speed 240 | 160 240 240 Overloaded Moves . | . . . Propulsion Burnouts . | . . . Robots Hopped . | . . . Cave-ins Triggered . | . . . Exploration Rate (%) 36 | 5 99 4 Regions Visited 2 Branch Regions 1 Pre-discovered Areas 1 | . . 1 Known Exits Taken . | . . . Unknown Exits Taken 2 | 1 1 . Scrap Searched . | . . . Spaces Dug . | . . . Terrain Destroyed 54 | . 2 52 Melee . | . . . Projectile . | . . . AOE 54 | . 2 52 Terrain Rammed . | . . . Walls Destroyed . | . . . Machines Disabled . | . . . Actions | -11 -10 -10 --------- Run | Jun Mat Sub Total 1755 | 116 1542 97 Wait 305 | 10 290 5 Move 1288 | 90 1139 59 Hop . | . . . Pick Up 38 | 9 26 3 Fast Attach 3 | . 2 1 Attach 20 | 6 6 8 Detach . | . . . Swap 6 | . 3 3 Drop 11 | . 6 5 Fire 84 | 1 70 13 Melee . | . . . Ram . | . . . Kick . | . . . Crush . | . . . Escape Stasis . | . . . Rewire . | . . . Trap . | . . . Miscellaneous . | . . . Route ------- -11/Junkyard -10/Materials (discovered 5 exits: [*Mat x3] / [*Min] / [*Sub]) -10/Subcaves (discovered 1 exit: [*Mat]) History --------- Turn | Location | Event 2 | -11/Junkyard | Met Revision 17 4 | -11/Junkyard | Discovered new exit (range 16) 162 | -11/Junkyard | Entered Materials 300 | -10/Materials | Build established: Mutant 368 | -10/Materials | Discovered new exit (range 15) 756 | -10/Materials | Discovered new exit (range 7) 966 | -10/Materials | Repaired Lgt. Treads 1149 | -10/Materials | Discovered new exit (range 4) 1693 | -10/Materials | Discovered new exit (range 15) 1693 | -10/Materials | Discovered new exit (range 8) 3338 | -10/Materials | Entered Subcaves 3374 | -10/Subcaves | Learned location of Zion (-6) 3386 | -10/Subcaves | Discovered new exit (range 11) 3421 | -10/Subcaves | Shifting Twisted Machinery released Sub. Beam Cannon 3495 | -10/Subcaves | Ambushed by Subdweller buried in earth 3497 | -10/Subcaves | Ambushed by Subdweller buried in earth 3497 | -10/Subcaves | Ambushed by Subdweller buried in earth 3505 | -10/Subcaves | Ambushed by Subdweller buried in earth 3512 | -10/Subcaves | Core integrity fell below 50% 3527 | -10/Subcaves | Core integrity fell below 20% 3538 | -10/Subcaves | Destroyed by 20-7KD(R) with Subdweller Shrapnel Launcher Last Messages --------------- 03505_ Lgt. Treads destroyed. 03506_ YA-SSM(R): "ARGHSUB!" 03509_ YA-SSM(R) suffers critical hit (Destroy). 03509_ YA-SSM(R) destroyed. 03511_ U2-76M(R) destroyed. 03512_ The unstable cave ceiling collapses. 03514_ NK-P2I(R) destroyed. 03514_ Grenade Launcher destroyed. 03514_ Destroyed Grenade Launcher. 03515_ The unstable cave ceiling collapses. 03517_ Weapon Shielding destroyed. 03517_ Grenade Launcher destroyed. 03521_ Sub. Laser melted. 03521_ Sub. Optics melted. 03521_ KL-A3G(R) destroyed. 03522_ The unstable cave ceiling collapses. 03528_ Lgt. Cannon destroyed. 03533_ Sub. Beam Cannon shoots sparks and powers down. 03534_ 20-7KD(R) affixes Scrap Shield Fragment to Scrap Shield. 03535_ Dropped Broken Sub. Beam Cannon. Map ----- +----------------------------------------------------+ | ?????????????????????????????????????????????????? | | ?????????????????????????????????????????????????? | | ?????????????????????????????????????????????????? | | ?????????????????????????????????????????????????? | | ?????????????????????????????????????????????????? | | ??###????????????????????????###?????????????????? | | ??# ####????????????????##### ##????????????????? | | ??# ##???????????#### ##???????????????? | | ???# ###????????## #???????????????? | | ?????# ##???????# #???????????????? | | ??????# ###??#### ##??????????????? | | ??????# " #### ## #??????????????? | | ??????## [< #### ##??????????????? | | ???????### """# """### ##??# ##??????????????? | | ?????????##""### ###?# #???## #??????????????? | | ??????????##"#?# #??# ##?#### #??????????????? | | ???????????#"#?## #### ## ######??????????????? | | ???????????#"#??## ## #???????????????????? | | ???????????#""???#### ## #???????????????????? | | ???????????????????# # # # #???????????????????? | | ???????????????????#### ##??????????????????? | | ?????????????????????# ##?????????????????? | | ?????????????????????# #?????????????????? | | ????????????????????## ##????????????????? | | ???????????????????## #????????????????? | | ???????????????????# # @ #????????????????? | | ???????????????????# ##????????????????? | | ???????????????????# [ #????????????????? | | ???????????????????## #???????????????? | | ????????????????????## ##???????????????? | | ?????????????????????# #????????????????? | | ?????????????????????# ; #????????????????? | | ?????????????????????# ; ###????????????????? | | ?????????????????????#### ####??????????????????? | | ???????????????????????? ????????????????????? | | ???????????????????????? ????????????????????? | | ???????????????????????? ????????????????????? | | ???????????????????????? ????????????????????? | | ???????????????????????? R% #????????????????????? | | ??????????????????????? &%!#?????????????????????? | | ??????????????????????? ""??????????????????????? | | ???????????????????????? ????????????????????????? | | ?????????????????????????????????????????????????? | | ?????????????????????????????????????????????????? | | ?????????????????????????????????????????????????? | | ?????????????????????????????????????????????????? | | ?????????????????????????????????????????????????? | | ?????????????????????????????????????????????????? | | ?????????????????????????????????????????????????? | | ?????????????????????????????????????????????????? | +----------------------------------------------------+ Best States ------------- Heat Dissipation 35 Energy Generation 10 Energy Capacity 250 Matter Stores 300 Matter Capacity 300 Sight Range 16 Terrain Scan Density 10 Core Shielding 20 Utility Shielding 33 Weapon Shielding 33 Evasion (%) 40 Recoil Reduction 2 Item Schematics ----------------- None Robot Schematics ------------------ None Fabricated ------------ Nothing Alien Tech Used ----------------- None Achievements -------------- None Challenges ------------ None Game ------ Seed GlidesysSurgeNanoactuators Manual? 0 Play Time 00:16:43 Cumulative 84.1 hours Start 2023.09.28 @ 18:36:46 End 2023.09.28 @ 19:02:41 Sessions 1 Manual Loads 0 Difficulty Rogue Special Mode None Game No. 88 Rogue 52 Adventurer 36 Explorer 0 Win Type - Total 7 Types 2/0/5/0/0/0/0/0/0 Lore% 47 Gallery% 69 Achievement% 58 Wizard Run 0 Options --------- ASCII 0 Keyboard 0 Movement Mouse Keybinds 0 Fullscreen 1 Font 18/SmallcapsGlow Map View 76x50 Tactical HUD 1 Map Filters NONE Filters NONE Steam 1 RUN: dc9c7446-4074-44b5-ad87-0f401e8986c7